[Event "*** Titled Tuesday Blitz"]
[Site "Chess.com"]
[Date "2021.02.16"]
[Round "8"]
[White "CM_rui"]
[Black "DinaBelenkaya"]
[Result "1-0"]
[WhiteElo "2408"]
[BlackElo "2290"]
[TimeControl "180+1"]
[EndTime "11:28:51 PST"]
[Termination "CM_rui won by checkmate"]

1. e4 {[%clk 0:03:00.9]} 1... d5 {[%clk 0:02:56.7]} 2. exd5 {[%clk 0:02:57]}
2... Qxd5 {[%clk 0:02:57.6]} 3. Nf3 {[%clk 0:02:57.6]} 3... Bg4 {[%clk
0:02:54.4]} 4. Be2 {[%clk 0:02:57.4]} 4... Nc6 {[%clk 0:02:51.2]} 5. O-O {[%clk
0:02:56.1]} 5... O-O-O {[%clk 0:02:43.6]} 6. Nc3 {[%clk 0:02:55.3]} 6... Qd7
{[%clk 0:02:37.2]} 7. d3 {[%clk 0:02:55.2]} 7... e5 {[%clk 0:02:26.8]} 8. a3
{[%clk 0:02:54.6]} 8... f5 {[%clk 0:02:22.2]} 9. b4 {[%clk 0:02:51.2]} 9... Nf6
{[%clk 0:02:20.1]} 10. b5 {[%clk 0:02:50.6]} 10... Bxf3 {[%clk 0:02:20.2]} 11.
Bxf3 {[%clk 0:02:46.4]} 11... Nd4 {[%clk 0:02:21.1]} 12. Be3 {[%clk 0:02:37.2]}
12... Bd6 {[%clk 0:01:27.7]} 13. a4 {[%clk 0:02:25.2]} 13... g5 {[%clk
0:01:11.4]} 14. Bxg5 {[%clk 0:02:21.9]} 14... Rdf8 {[%clk 0:01:06.8]} 15. a5
{[%clk 0:02:06.2]} 15... Rhg8 {[%clk 0:01:06.5]} 16. Bxf6 {[%clk 0:02:02.8]}
16... Rxf6 {[%clk 0:01:06]} 17. b6 {[%clk 0:02:01.7]} 17... a6 {[%clk
0:01:03.9]} 18. bxc7 {[%clk 0:02:01.1]} 18... Rfg6 {[%clk 0:01:02]} 19. Rb1
{[%clk 0:01:57.7]} 19... Nxf3+ {[%clk 0:01:01]} 20. Qxf3 {[%clk 0:01:58.6]}
20... Qxc7 {[%clk 0:00:58.3]} 21. Nd5 {[%clk 0:01:53.6]} 21... Qc6 {[%clk
0:00:54.9]} 22. Rb6 {[%clk 0:01:41.1]} 22... Rxg2+ {[%clk 0:00:53.9]} 23. Kh1
{[%clk 0:01:39.5]} 23... Rxh2+ {[%clk 0:00:26.6]} 24. Kxh2 {[%clk 0:01:40.4]}
24... e4+ {[%clk 0:00:27.2]} 25. Kh1 {[%clk 0:01:28.9]} 25... Qxd5 {[%clk
0:00:25.1]} 26. dxe4 {[%clk 0:01:14.8]} 26... fxe4 {[%clk 0:00:26]} 27. Qh3+
{[%clk 0:00:57.2]} 27... Kb8 {[%clk 0:00:25.9]} 28. Rfb1 {[%clk 0:00:51.1]}
28... e3+ {[%clk 0:00:25.9]} 29. f3 {[%clk 0:00:51.6]} 29... e2 {[%clk
0:00:23.5]} 30. Rxb7+ {[%clk 0:00:45.8]} 30... Ka8 {[%clk 0:00:14.2]} 31. R7b6
{[%clk 0:00:38.5]} 31... Bc7 {[%clk 0:00:12.5]} 32. Rxa6# {[%clk 0:00:38.2]} 1-0

[Event "*** Titled Tuesday Blitz"]
[Site "Chess.com"]
[Date "2021.02.16"]
[Round "8"]
[White "Vincent_Vega95"]
[Black "PSvidler"]
[Result "0-1"]
[WhiteElo "2695"]
[BlackElo "2912"]
[TimeControl "180+1"]
[EndTime "11:28:54 PST"]
[Termination "PSvidler won by resignation"]

1. Nf3 {[%clk 0:02:55.5]} 1... g6 {[%clk 0:02:59.6]} 2. c4 {[%clk 0:02:55]} 2...
Bg7 {[%clk 0:02:59.5]} 3. e4 {[%clk 0:02:49.7]} 3... c5 {[%clk 0:02:52.8]} 4. d4
{[%clk 0:02:49.5]} 4... Qb6 {[%clk 0:02:48.7]} 5. dxc5 {[%clk 0:02:45.8]} 5...
Qxc5 {[%clk 0:02:48.7]} 6. Be2 {[%clk 0:02:39.6]} 6... Nc6 {[%clk 0:02:48.4]} 7.
O-O {[%clk 0:02:39.1]} 7... d6 {[%clk 0:02:48.4]} 8. h3 {[%clk 0:02:27]} 8...
Be6 {[%clk 0:02:47.8]} 9. Nbd2 {[%clk 0:02:19.8]} 9... Nf6 {[%clk 0:02:46.6]}
10. Rb1 {[%clk 0:02:15.8]} 10... O-O {[%clk 0:02:44.3]} 11. a3 {[%clk
0:02:15.9]} 11... a5 {[%clk 0:02:44.1]} 12. b3 {[%clk 0:02:16]} 12... Nd7 {[%clk
0:02:40.9]} 13. b4 {[%clk 0:01:54.3]} 13... axb4 {[%clk 0:02:38.4]} 14. axb4
{[%clk 0:01:54.5]} 14... Nxb4 {[%clk 0:02:33.8]} 15. Nb3 {[%clk 0:01:54.9]}
15... Qc8 {[%clk 0:02:21.5]} 16. Nbd4 {[%clk 0:01:52.1]} 16... Nc6 {[%clk
0:02:20]} 17. Nxe6 {[%clk 0:01:51.7]} 17... fxe6 {[%clk 0:02:19.9]} 18. Be3
{[%clk 0:01:41.2]} 18... Nde5 {[%clk 0:02:13.5]} 19. Nd2 {[%clk 0:01:28.4]}
19... Ra3 {[%clk 0:02:08.1]} 20. Rb3 {[%clk 0:01:22.4]} 20... Rxb3 {[%clk
0:02:02.5]} 21. Qxb3 {[%clk 0:01:22.1]} 21... Nd7 {[%clk 0:02:02.2]} 22. Rb1
{[%clk 0:01:11.9]} 22... Nd4 {[%clk 0:02:01.8]} 23. Qd1 {[%clk 0:01:04.1]} 23...
Nc5 {[%clk 0:01:50.2]} 24. Bf1 {[%clk 0:00:31.1]} 24... e5 {[%clk 0:01:46.8]}
25. g3 {[%clk 0:00:24.7]} 25... h5 {[%clk 0:01:36.5]} 26. Bg2 {[%clk 0:00:22.6]}
26... Kh7 {[%clk 0:01:36.2]} 27. Bxd4 {[%clk 0:00:19]} 27... exd4 {[%clk
0:01:36.2]} 28. Nf3 {[%clk 0:00:19.7]} 28... d3 {[%clk 0:01:31.4]} 29. Ng5+
{[%clk 0:00:17.2]} 29... Kh8 {[%clk 0:01:29.1]} 30. h4 {[%clk 0:00:17.7]} 30...
Bf6 {[%clk 0:01:10.4]} 31. f4 {[%clk 0:00:15.6]} 31... Bxg5 {[%clk 0:01:09.4]}
32. hxg5 {[%clk 0:00:16.5]} 32... Qg4 {[%clk 0:01:08.8]} 33. Qxg4 {[%clk
0:00:15.5]} 33... hxg4 {[%clk 0:01:08.7]} 34. Kf2 {[%clk 0:00:14.1]} 34... Ra8
{[%clk 0:01:08.3]} 35. Ke3 {[%clk 0:00:14]} 35... Ra3 {[%clk 0:01:07.8]} 36. Rd1
{[%clk 0:00:11.2]} 36... d2+ {[%clk 0:01:05.1]} 37. Kf2 {[%clk 0:00:09.8]} 37...
Rd3 {[%clk 0:01:04.7]} 38. Bf1 {[%clk 0:00:09.1]} 38... Nxe4+ {[%clk 0:01:04.1]}
39. Ke2 {[%clk 0:00:09]} 39... Rxg3 {[%clk 0:01:03.7]} 0-1

[Event "*** Titled Tuesday Blitz"]
[Site "Chess.com"]
[Date "2021.02.16"]
[Round "8"]
[White "guillembaches"]
[Black "Godzillator"]
[Result "1-0"]
[WhiteElo "2463"]
[BlackElo "2283"]
[TimeControl "180+1"]
[EndTime "11:28:58 PST"]
[Termination "guillembaches won by resignation"]

1. e4 {[%clk 0:03:00.9]} 1... c6 {[%clk 0:03:00.1]} 2. d4 {[%clk 0:03:00.3]}
2... d5 {[%clk 0:03:01]} 3. exd5 {[%clk 0:03:00.9]} 3... cxd5 {[%clk 0:03:01.1]}
4. Bd3 {[%clk 0:03:01.5]} 4... Nc6 {[%clk 0:03:01]} 5. c3 {[%clk 0:03:02.1]}
5... Nf6 {[%clk 0:03:01.3]} 6. h3 {[%clk 0:03:02.7]} 6... g6 {[%clk 0:03:00.8]}
7. Bf4 {[%clk 0:03:01.5]} 7... Bf5 {[%clk 0:03:00.6]} 8. Be2 {[%clk 0:03:00.5]}
8... Bg7 {[%clk 0:02:59.2]} 9. Nf3 {[%clk 0:03:00.7]} 9... O-O {[%clk
0:02:58.6]} 10. O-O {[%clk 0:03:00.8]} 10... a6 {[%clk 0:02:52.7]} 11. Nbd2
{[%clk 0:03:00.5]} 11... Ne4 {[%clk 0:02:50.3]} 12. Re1 {[%clk 0:02:54.1]} 12...
b5 {[%clk 0:02:42.7]} 13. a3 {[%clk 0:02:49.3]} 13... Na5 {[%clk 0:02:41.9]} 14.
Bf1 {[%clk 0:02:38.6]} 14... Nxd2 {[%clk 0:02:36.1]} 15. Nxd2 {[%clk 0:02:34.6]}
15... Nc4 {[%clk 0:02:35.9]} 16. Ra2 {[%clk 0:02:16.3]} 16... Nxd2 {[%clk
0:02:20.4]} 17. Qxd2 {[%clk 0:02:14.4]} 17... Re8 {[%clk 0:02:11.3]} 18. a4
{[%clk 0:02:13.1]} 18... b4 {[%clk 0:02:05.6]} 19. cxb4 {[%clk 0:02:11]} 19...
Qb6 {[%clk 0:02:05.6]} 20. Be5 {[%clk 0:01:57.9]} 20... Bxe5 {[%clk 0:01:50.4]}
21. Rxe5 {[%clk 0:01:47.9]} 21... Be6 {[%clk 0:01:38.7]} 22. b5 {[%clk 0:01:38]}
22... a5 {[%clk 0:01:25.6]} 23. b4 {[%clk 0:01:34.6]} 23... Rec8 {[%clk
0:01:23.9]} 24. bxa5 {[%clk 0:01:21.4]} 24... Rxa5 {[%clk 0:01:23.9]} 25. Rc2
{[%clk 0:01:14.7]} 25... Rca8 {[%clk 0:01:22.8]} 26. Rc6 {[%clk 0:01:12]} 26...
Qb8 {[%clk 0:01:21.5]} 27. Qb4 {[%clk 0:00:57.9]} 27... Rxa4 {[%clk 0:01:18.6]}
28. Qxe7 {[%clk 0:00:58]} 28... Ra1 {[%clk 0:01:14.3]} 29. Rexe6 {[%clk
0:00:51.6]} 29... Rxf1+ {[%clk 0:00:45.3]} 30. Kxf1 {[%clk 0:00:45.1]} 30...
Qxb5+ {[%clk 0:00:41.8]} 31. Kg1 {[%clk 0:00:44]} 31... fxe6 {[%clk 0:00:40.2]}
32. Rc7 {[%clk 0:00:37.9]} 1-0

[Event "*** Titled Tuesday Blitz"]
[Site "Chess.com"]
[Date "2021.02.16"]
[Round "8"]
[White "NemtsevIgor"]
[Black "KruHor"]
[Result "0-1"]
[WhiteElo "2362"]
[BlackElo "2525"]
[TimeControl "180+1"]
[EndTime "11:28:58 PST"]
[Termination "KruHor won by resignation"]

1. d4 {[%clk 0:03:00.9]} 1... Nf6 {[%clk 0:02:58.8]} 2. Bf4 {[%clk 0:03:00.8]}
2... h6 {[%clk 0:02:57.6]} 3. e3 {[%clk 0:02:59.5]} 3... Nc6 {[%clk 0:02:54.6]}
4. h3 {[%clk 0:02:53.2]} 4... d6 {[%clk 0:02:53.2]} 5. Nf3 {[%clk 0:02:52.2]}
5... Bf5 {[%clk 0:02:50.6]} 6. Bb5 {[%clk 0:02:50.4]} 6... a6 {[%clk 0:02:49.3]}
7. Ba4 {[%clk 0:02:45.7]} 7... b5 {[%clk 0:02:48.7]} 8. Bb3 {[%clk 0:02:45.1]}
8... Na5 {[%clk 0:02:48.3]} 9. Nc3 {[%clk 0:02:23.8]} 9... e6 {[%clk 0:02:45.7]}
10. O-O {[%clk 0:02:22.5]} 10... Be7 {[%clk 0:02:39]} 11. Qe2 {[%clk 0:02:18.6]}
11... Bh7 {[%clk 0:02:33.5]} 12. Bh2 {[%clk 0:02:05.4]} 12... O-O {[%clk
0:02:31.9]} 13. Rfe1 {[%clk 0:02:04.3]} 13... c5 {[%clk 0:02:30.6]} 14. a4
{[%clk 0:01:45.2]} 14... c4 {[%clk 0:02:22.1]} 15. Ba2 {[%clk 0:01:45]} 15... b4
{[%clk 0:02:21]} 16. Nd1 {[%clk 0:01:42.9]} 16... b3 {[%clk 0:02:12.2]} 17. cxb3
{[%clk 0:01:38.2]} 17... cxb3 {[%clk 0:02:09.4]} 18. Bb1 {[%clk 0:01:38]} 18...
Ne4 {[%clk 0:02:04.8]} 19. Nd2 {[%clk 0:01:29.2]} 19... d5 {[%clk 0:01:57.8]}
20. Bxe4 {[%clk 0:01:18.7]} 20... Bxe4 {[%clk 0:01:48.6]} 21. Nxe4 {[%clk
0:01:18.3]} 21... dxe4 {[%clk 0:01:48.5]} 22. Nc3 {[%clk 0:01:18.5]} 22... Bb4
{[%clk 0:01:44.8]} 23. Rec1 {[%clk 0:01:14.7]} 23... f5 {[%clk 0:01:42.8]} 24.
Be5 {[%clk 0:01:01]} 24... Qd7 {[%clk 0:01:40.8]} 25. g4 {[%clk 0:00:42.3]}
25... Rfc8 {[%clk 0:01:36]} 26. gxf5 {[%clk 0:00:36.3]} 26... exf5 {[%clk
0:01:34.9]} 27. Kh1 {[%clk 0:00:36]} 27... Rc6 {[%clk 0:01:32.5]} 28. Rg1 {[%clk
0:00:32.1]} 28... g6 {[%clk 0:01:31.4]} 29. Qh5 {[%clk 0:00:29.3]} 29... Kh7
{[%clk 0:01:29]} 30. Qh4 {[%clk 0:00:25.3]} 30... Bxc3 {[%clk 0:01:28]} 31. bxc3
{[%clk 0:00:25.5]} 31... Nc4 {[%clk 0:01:26.4]} 32. Bf4 {[%clk 0:00:22.7]} 32...
g5 {[%clk 0:01:24.9]} 33. Rxg5 {[%clk 0:00:20]} 33... b2 {[%clk 0:01:12.6]} 34.
Rag1 {[%clk 0:00:19.8]} 34... Rb6 {[%clk 0:01:11.2]} 35. Qh5 {[%clk 0:00:18.5]}
35... b1=Q {[%clk 0:01:06.2]} 36. Qg6+ {[%clk 0:00:17.8]} 36... Rxg6 {[%clk
0:01:05]} 37. Rxg6 {[%clk 0:00:15.1]} 37... Qxg1+ {[%clk 0:01:01.5]} 38. Rxg1
{[%clk 0:00:13.1]} 38... Rg8 {[%clk 0:01:01.3]} 0-1

[Event "*** Titled Tuesday Blitz"]
[Site "Chess.com"]
[Date "2021.02.16"]
[Round "8"]
[White "Mikhail_Golubev"]
[Black "Vanina1989"]
[Result "1-0"]
[WhiteElo "2576"]
[BlackElo "2731"]
[TimeControl "180+1"]
[EndTime "11:28:59 PST"]
[Termination "Mikhail_Golubev won by resignation"]

1. e4 {[%clk 0:03:00.9]} 1... c6 {[%clk 0:02:59.4]} 2. d4 {[%clk 0:03:00.2]}
2... d5 {[%clk 0:02:59.5]} 3. Nc3 {[%clk 0:03:00.6]} 3... dxe4 {[%clk
0:02:59.7]} 4. Nxe4 {[%clk 0:03:01.5]} 4... Nf6 {[%clk 0:02:59.2]} 5. Nxf6+
{[%clk 0:03:01.1]} 5... exf6 {[%clk 0:02:59.7]} 6. c3 {[%clk 0:03:00.8]} 6...
Bd6 {[%clk 0:02:59.2]} 7. Bd3 {[%clk 0:03:01.3]} 7... O-O {[%clk 0:02:59.1]} 8.
Ne2 {[%clk 0:03:01.9]} 8... Re8 {[%clk 0:02:59.2]} 9. Qc2 {[%clk 0:03:02.4]}
9... h5 {[%clk 0:02:59.6]} 10. O-O {[%clk 0:03:01.9]} 10... h4 {[%clk
0:02:59.3]} 11. h3 {[%clk 0:03:02]} 11... Nd7 {[%clk 0:02:59.5]} 12. Bd2 {[%clk
0:02:58.4]} 12... Nf8 {[%clk 0:02:59.6]} 13. Rae1 {[%clk 0:02:58.3]} 13... Be6
{[%clk 0:02:59]} 14. b3 {[%clk 0:02:55]} 14... Qc7 {[%clk 0:02:58.5]} 15. f4
{[%clk 0:02:48.2]} 15... c5 {[%clk 0:02:54.7]} 16. f5 {[%clk 0:02:41.2]} 16...
Bd7 {[%clk 0:02:52.3]} 17. d5 {[%clk 0:02:31.4]} 17... Nh7 {[%clk 0:02:39.5]}
18. c4 {[%clk 0:02:30.2]} 18... Be5 {[%clk 0:02:31.1]} 19. Nc3 {[%clk
0:02:28.4]} 19... Bd4+ {[%clk 0:02:29.1]} 20. Kh1 {[%clk 0:02:26.3]} 20... Ng5
{[%clk 0:01:28.6]} 21. Bxg5 {[%clk 0:02:09.6]} 21... fxg5 {[%clk 0:01:28.1]} 22.
Ne4 {[%clk 0:02:09.4]} 22... Qe5 {[%clk 0:01:25.4]} 23. Qd1 {[%clk 0:01:40]}
23... Qe7 {[%clk 0:00:45.8]} 24. f6 {[%clk 0:01:29.5]} 24... Qf8 {[%clk
0:00:14.5]} 25. fxg7 {[%clk 0:01:14.4]} 25... Qxg7 {[%clk 0:00:14.1]} 26. Nd6
{[%clk 0:01:14]} 26... Rxe1 {[%clk 0:00:13.7]} 27. Qxe1 {[%clk 0:01:14.1]} 27...
Be5 {[%clk 0:00:09.4]} 28. Rxf7 {[%clk 0:01:06.5]} 28... Bxd6 {[%clk 0:00:06.6]}
29. Rxg7+ {[%clk 0:01:04.7]} 29... Kxg7 {[%clk 0:00:07.1]} 30. Qe3 {[%clk
0:00:42.4]} 30... Bf4 {[%clk 0:00:05.5]} 31. Qe7+ {[%clk 0:00:41.6]} 1-0

[Event "*** Titled Tuesday Blitz"]
[Site "Chess.com"]
[Date "2021.02.16"]
[Round "8"]
[White "Kurkusha"]
[Black "alejogarcia1999"]
[Result "0-1"]
[WhiteElo "2357"]
[BlackElo "2502"]
[TimeControl "180+1"]
[EndTime "11:29:05 PST"]
[Termination "alejogarcia1999 won on time"]

1. Nf3 {[%clk 0:03:00.9]} 1... Nf6 {[%clk 0:02:59.7]} 2. c4 {[%clk 0:03:00.7]}
2... g6 {[%clk 0:03:00.2]} 3. g3 {[%clk 0:03:00]} 3... Bg7 {[%clk 0:03:00.8]} 4.
Bg2 {[%clk 0:03:00.4]} 4... O-O {[%clk 0:03:01.4]} 5. d4 {[%clk 0:03:00.9]} 5...
d6 {[%clk 0:03:02.3]} 6. Nc3 {[%clk 0:03:00.5]} 6... Nbd7 {[%clk 0:03:02.9]} 7.
O-O {[%clk 0:03:00.4]} 7... e5 {[%clk 0:03:03.4]} 8. e4 {[%clk 0:02:58.9]} 8...
exd4 {[%clk 0:03:03.4]} 9. Nxd4 {[%clk 0:02:58.7]} 9... Re8 {[%clk 0:03:04.3]}
10. Re1 {[%clk 0:02:58.2]} 10... c6 {[%clk 0:03:04.6]} 11. b3 {[%clk 0:02:55.2]}
11... Ng4 {[%clk 0:02:59.1]} 12. Bb2 {[%clk 0:02:30.8]} 12... Nc5 {[%clk
0:02:52.8]} 13. Rb1 {[%clk 0:02:07.6]} 13... Qb6 {[%clk 0:02:24.2]} 14. Na4
{[%clk 0:01:09.4]} 14... Nxa4 {[%clk 0:02:22]} 15. bxa4 {[%clk 0:01:10.3]} 15...
Qa6 {[%clk 0:02:11.3]} 16. Nb3 {[%clk 0:00:57.1]} 16... Qxc4 {[%clk 0:02:02.3]}
17. Bxg7 {[%clk 0:00:56.1]} 17... Kxg7 {[%clk 0:02:02]} 18. Qxd6 {[%clk
0:00:55.5]} 18... Qxa4 {[%clk 0:01:58.2]} 19. Nc5 {[%clk 0:00:47.3]} 19... Qxa2
{[%clk 0:01:56.4]} 20. Qd4+ {[%clk 0:00:47]} 20... Kg8 {[%clk 0:01:54.2]} 21. h3
{[%clk 0:00:44]} 21... Ne5 {[%clk 0:01:51.8]} 22. f4 {[%clk 0:00:22.3]} 22...
Bxh3 {[%clk 0:01:49.4]} 23. Rb2 {[%clk 0:00:21.1]} 23... Qa3 {[%clk 0:01:44]}
24. fxe5 {[%clk 0:00:17.5]} 24... Qxg3 {[%clk 0:01:39.3]} 25. Qf2 {[%clk
0:00:17.5]} 25... Qg5 {[%clk 0:01:36.5]} 26. Rxb7 {[%clk 0:00:11.4]} 26... Rf8
{[%clk 0:01:30.3]} 27. e6 {[%clk 0:00:10]} 27... fxe6 {[%clk 0:01:27.9]} 28. Qb2
{[%clk 0:00:10.2]} 28... e5 {[%clk 0:01:25.3]} 29. Nd3 {[%clk 0:00:07.8]} 29...
Rae8 {[%clk 0:01:22.9]} 30. Kh2 {[%clk 0:00:04.6]} 30... Bxg2 {[%clk 0:01:22]}
31. Qxg2 {[%clk 0:00:05.2]} 31... Qh4+ {[%clk 0:01:22.2]} 32. Kg1 {[%clk
0:00:03.7]} 32... Rf4 {[%clk 0:01:20.1]} 33. Nxf4 {[%clk 0:00:03.4]} 33... Qxe1+
{[%clk 0:01:20]} 34. Kh2 {[%clk 0:00:04.3]} 34... exf4 {[%clk 0:01:19.9]} 35.
Qa2+ {[%clk 0:00:05]} 35... Kh8 {[%clk 0:01:19.5]} 36. Qf7 {[%clk 0:00:05.5]}
36... Qg3+ {[%clk 0:01:19.1]} 37. Kh1 {[%clk 0:00:05.9]} 37... Qh3+ {[%clk
0:01:18.3]} 38. Kg1 {[%clk 0:00:06.2]} 38... Qg3+ {[%clk 0:01:18.5]} 39. Kh1
{[%clk 0:00:05.5]} 39... Qh4+ {[%clk 0:01:18.1]} 40. Kg2 {[%clk 0:00:05.8]}
40... f3+ {[%clk 0:01:15.8]} 41. Kxf3 {[%clk 0:00:02.4]} 41... Qxe4+ {[%clk
0:01:15.3]} 42. Kg3 {[%clk 0:00:02.9]} 42... Qe3+ {[%clk 0:01:15.2]} 43. Kg2
{[%clk 0:00:01.6]} 43... Qe2+ {[%clk 0:01:15.2]} 0-1

[Event "*** Titled Tuesday Blitz"]
[Site "Chess.com"]
[Date "2021.02.16"]
[Round "8"]
[White "Grimlock_Glasgow"]
[Black "ybruned"]
[Result "0-1"]
[WhiteElo "2435"]
[BlackElo "2328"]
[TimeControl "180+1"]
[EndTime "11:29:05 PST"]
[Termination "ybruned won on time"]

1. e4 {[%clk 0:03:00.9]} 1... b6 {[%clk 0:02:59.8]} 2. d4 {[%clk 0:02:59.9]}
2... Bb7 {[%clk 0:02:58.9]} 3. Bd3 {[%clk 0:03:00.3]} 3... e6 {[%clk 0:02:58.4]}
4. Nh3 {[%clk 0:03:00.3]} 4... d5 {[%clk 0:02:45.3]} 5. e5 {[%clk 0:02:54.5]}
5... Ba6 {[%clk 0:02:23.3]} 6. Bxa6 {[%clk 0:02:47.9]} 6... Nxa6 {[%clk
0:02:22.6]} 7. O-O {[%clk 0:02:30.8]} 7... Ne7 {[%clk 0:02:13.2]} 8. c3 {[%clk
0:02:22.6]} 8... Qd7 {[%clk 0:01:40.1]} 9. b4 {[%clk 0:02:15.1]} 9... c5 {[%clk
0:01:17.7]} 10. bxc5 {[%clk 0:01:58.3]} 10... bxc5 {[%clk 0:01:16.5]} 11. Qe2
{[%clk 0:01:40]} 11... Nc7 {[%clk 0:00:56.4]} 12. Be3 {[%clk 0:00:48.9]} 12...
cxd4 {[%clk 0:00:47.4]} 13. cxd4 {[%clk 0:00:47.9]} 13... Nf5 {[%clk 0:00:47.8]}
14. Nc3 {[%clk 0:00:34.6]} 14... Nxe3 {[%clk 0:00:46.3]} 15. fxe3 {[%clk
0:00:34.3]} 15... Be7 {[%clk 0:00:46.9]} 16. Nf4 {[%clk 0:00:30.1]} 16... O-O
{[%clk 0:00:44.7]} 17. Nh5 {[%clk 0:00:13]} 17... Ne8 {[%clk 0:00:39.1]} 18.
Rac1 {[%clk 0:00:11]} 18... f5 {[%clk 0:00:35]} 19. exf6 {[%clk 0:00:10.3]}
19... Nxf6 {[%clk 0:00:34.2]} 20. Nxf6+ {[%clk 0:00:08.6]} 20... Bxf6 {[%clk
0:00:34.3]} 21. Qb5 {[%clk 0:00:07.3]} 21... Qd6 {[%clk 0:00:29.8]} 22. Na4
{[%clk 0:00:05.2]} 22... Bg5 {[%clk 0:00:24.5]} 23. Rxf8+ {[%clk 0:00:03.3]}
23... Rxf8 {[%clk 0:00:23.5]} 24. Re1 {[%clk 0:00:01.7]} 24... Bh4 {[%clk
0:00:21.6]} 0-1

[Event "*** Titled Tuesday Blitz"]
[Site "Chess.com"]
[Date "2021.02.16"]
[Round "8"]
[White "Shuvalov"]
[Black "andrewtnb"]
[Result "1-0"]
[WhiteElo "2535"]
[BlackElo "2325"]
[TimeControl "180+1"]
[EndTime "11:29:06 PST"]
[Termination "Shuvalov won on time"]

1. Nf3 {[%clk 0:02:59.2]} 1... d5 {[%clk 0:02:58.4]} 2. c4 {[%clk 0:02:58.5]}
2... c6 {[%clk 0:02:57.3]} 3. g3 {[%clk 0:02:58.5]} 3... Nf6 {[%clk 0:02:53.4]}
4. Bg2 {[%clk 0:02:58.5]} 4... Bg4 {[%clk 0:02:49.7]} 5. Ne5 {[%clk 0:02:57.9]}
5... Be6 {[%clk 0:02:49.8]} 6. cxd5 {[%clk 0:02:57.4]} 6... Bxd5 {[%clk
0:02:50.2]} 7. Nf3 {[%clk 0:02:57.7]} 7... c5 {[%clk 0:02:48.4]} 8. Nc3 {[%clk
0:02:57.5]} 8... Bc6 {[%clk 0:02:48.2]} 9. d3 {[%clk 0:02:57.4]} 9... e6 {[%clk
0:02:48]} 10. O-O {[%clk 0:02:56.8]} 10... Be7 {[%clk 0:02:48.4]} 11. e4 {[%clk
0:02:55.3]} 11... O-O {[%clk 0:02:48.2]} 12. h3 {[%clk 0:02:54.8]} 12... a5
{[%clk 0:02:44.6]} 13. Be3 {[%clk 0:02:48.8]} 13... a4 {[%clk 0:02:41.4]} 14. a3
{[%clk 0:02:41.7]} 14... Nbd7 {[%clk 0:02:29.7]} 15. Qc2 {[%clk 0:02:35.7]}
15... Qa5 {[%clk 0:02:19.4]} 16. Rfd1 {[%clk 0:02:33.1]} 16... Rfc8 {[%clk
0:02:18.2]} 17. Bd2 {[%clk 0:02:06.8]} 17... Qa7 {[%clk 0:02:13.5]} 18. Be3
{[%clk 0:02:05.6]} 18... Qa5 {[%clk 0:02:11.5]} 19. Nd2 {[%clk 0:02:01.4]} 19...
b5 {[%clk 0:02:08.7]} 20. f4 {[%clk 0:02:01]} 20... Bb7 {[%clk 0:01:46.9]} 21.
e5 {[%clk 0:01:49.2]} 21... Nd5 {[%clk 0:01:39.7]} 22. Nxd5 {[%clk 0:01:49.2]}
22... Bxd5 {[%clk 0:01:38]} 23. Bxd5 {[%clk 0:01:49.1]} 23... exd5 {[%clk
0:01:38.3]} 24. Kh2 {[%clk 0:01:42.4]} 24... Qa6 {[%clk 0:01:25.7]} 25. Nf3
{[%clk 0:01:41.4]} 25... f6 {[%clk 0:01:25]} 26. Qg2 {[%clk 0:01:32]} 26... fxe5
{[%clk 0:01:23.4]} 27. Nxe5 {[%clk 0:01:30]} 27... Nxe5 {[%clk 0:01:22.8]} 28.
fxe5 {[%clk 0:01:30.4]} 28... Qe6 {[%clk 0:01:12.7]} 29. d4 {[%clk 0:01:29.8]}
29... c4 {[%clk 0:00:43]} 30. Bd2 {[%clk 0:01:29.3]} 30... Rf8 {[%clk
0:00:35.6]} 31. Rf1 {[%clk 0:01:28.3]} 31... g6 {[%clk 0:00:27.2]} 32. h4 {[%clk
0:01:12.2]} 32... h5 {[%clk 0:00:25.6]} 33. Bh6 {[%clk 0:01:07.9]} 33... Rxf1
{[%clk 0:00:24]} 34. Rxf1 {[%clk 0:01:08.8]} 34... Kh7 {[%clk 0:00:09.5]} 35.
Bd2 {[%clk 0:01:06.3]} 35... Rf8 {[%clk 0:00:08.6]} 36. Rxf8 {[%clk 0:01:02.1]}
36... Bxf8 {[%clk 0:00:09.5]} 37. Qf3 {[%clk 0:01:02.1]} 37... Be7 {[%clk
0:00:09.2]} 38. Qf4 {[%clk 0:01:01.9]} 38... Qg4 {[%clk 0:00:05.3]} 39. Qf7+
{[%clk 0:01:00.8]} 39... Kh8 {[%clk 0:00:04.8]} 40. Qe8+ {[%clk 0:00:59]} 1-0

[Event "*** Titled Tuesday Blitz"]
[Site "Chess.com"]
[Date "2021.02.16"]
[Round "8"]
[White "kuba2006"]
[Black "Rodchenkov_Vitalij"]
[Result "1-0"]
[WhiteElo "2385"]
[BlackElo "2540"]
[TimeControl "180+1"]
[EndTime "11:29:06 PST"]
[Termination "kuba2006 won by checkmate"]

1. e4 {[%clk 0:03:00.9]} 1... d5 {[%clk 0:02:59.7]} 2. exd5 {[%clk 0:03:00.4]}
2... Qxd5 {[%clk 0:02:59.8]} 3. Nf3 {[%clk 0:03:00.1]} 3... Bg4 {[%clk
0:02:59.2]} 4. Be2 {[%clk 0:02:59]} 4... Nc6 {[%clk 0:02:58.7]} 5. d4 {[%clk
0:02:58.2]} 5... O-O-O {[%clk 0:02:58.4]} 6. c4 {[%clk 0:02:54.3]} 6... Qf5
{[%clk 0:02:39.3]} 7. Be3 {[%clk 0:02:23.2]} 7... e5 {[%clk 0:02:32.2]} 8. d5
{[%clk 0:02:22.1]} 8... Bb4+ {[%clk 0:02:30.3]} 9. Nc3 {[%clk 0:02:12.4]} 9...
Nf6 {[%clk 0:02:17.9]} 10. O-O {[%clk 0:02:02.5]} 10... e4 {[%clk 0:02:08.5]}
11. Nd4 {[%clk 0:01:50.5]} 11... Nxd4 {[%clk 0:02:08.5]} 12. Bxg4 {[%clk
0:01:46.9]} 12... Qxg4 {[%clk 0:01:44.9]} 13. Qxd4 {[%clk 0:01:42.1]} 13... b6
{[%clk 0:01:44.8]} 14. h3 {[%clk 0:01:26]} 14... Qg6 {[%clk 0:01:40.1]} 15. Nb5
{[%clk 0:01:12.9]} 15... a6 {[%clk 0:01:34.4]} 16. Na7+ {[%clk 0:01:11.2]} 16...
Kb7 {[%clk 0:01:33.5]} 17. Nc6 {[%clk 0:01:11.1]} 17... Bc5 {[%clk 0:01:33.3]}
18. Qc3 {[%clk 0:01:07]} 18... Nxd5 {[%clk 0:00:44.7]} 19. Nxd8+ {[%clk
0:01:01.7]} 19... Rxd8 {[%clk 0:00:41.5]} 20. cxd5 {[%clk 0:01:02.3]} 20... Rxd5
{[%clk 0:00:42.2]} 21. Bxc5 {[%clk 0:00:59.5]} 21... Rxc5 {[%clk 0:00:42.6]} 22.
Qe3 {[%clk 0:00:58.7]} 22... f5 {[%clk 0:00:40.5]} 23. Rad1 {[%clk 0:00:53.1]}
23... Qf6 {[%clk 0:00:40]} 24. Qd4 {[%clk 0:00:51.4]} 24... Qc6 {[%clk
0:00:35.5]} 25. Qe3 {[%clk 0:00:43.1]} 25... Qf6 {[%clk 0:00:33.8]} 26. Rc1
{[%clk 0:00:37.9]} 26... Rb5 {[%clk 0:00:29.5]} 27. Qf4 {[%clk 0:00:34.4]} 27...
Qf7 {[%clk 0:00:25.6]} 28. b3 {[%clk 0:00:28.6]} 28... h6 {[%clk 0:00:25.9]} 29.
Rfd1 {[%clk 0:00:24]} 29... g5 {[%clk 0:00:24]} 30. Qd2 {[%clk 0:00:23.8]} 30...
Re5 {[%clk 0:00:22.4]} 31. Qd7 {[%clk 0:00:23.4]} 31... Re7 {[%clk 0:00:22.3]}
32. Rxc7+ {[%clk 0:00:22.6]} 32... Ka8 {[%clk 0:00:21.1]} 33. Qc8# {[%clk
0:00:23.5]} 1-0